[Event "Early-Titled-Tuesday-Blitz-January-23-2024"]
[Site "Chess.com"]
[Date "2024.01.23"]
[Round "7"]
[White "MIss_MIaMI"]
[Black "Knightmare1014"]
[Result "0-1"]
[WhiteElo "2431"]
[BlackElo "2303"]
[TimeControl "180+1"]
[EndTime "9:19:13 PST"]
[Termination "Knightmare1014 won by resignation"]

1. e4 {[%clk 0:03:00.9]} 1... c5 {[%clk 0:02:58.9]} 2. Nf3 {[%clk 0:03:01]} 2...
e6 {[%clk 0:02:58.2]} 3. d4 {[%clk 0:03:01.3]} 3... cxd4 {[%clk 0:02:57.5]} 4.
c3 {[%clk 0:03:02]} 4... dxc3 {[%clk 0:02:56.4]} 5. Nxc3 {[%clk 0:03:02.9]} 5...
a6 {[%clk 0:02:56]} 6. Bc4 {[%clk 0:03:02.6]} 6... b5 {[%clk 0:02:55.9]} 7. Bb3
{[%clk 0:03:02.6]} 7... Bb7 {[%clk 0:02:56.6]} 8. Qe2 {[%clk 0:03:02.7]} 8...
Ne7 {[%clk 0:02:52.5]} 9. Bf4 {[%clk 0:02:50.6]} 9... Ng6 {[%clk 0:02:51.1]} 10.
Bg3 {[%clk 0:02:50.9]} 10... Be7 {[%clk 0:02:48.2]} 11. O-O {[%clk 0:02:49.9]}
11... O-O {[%clk 0:02:47.6]} 12. Rfd1 {[%clk 0:02:49.9]} 12... Nc6 {[%clk
0:02:39.4]} 13. Qd3 {[%clk 0:02:21]} 13... Nb4 {[%clk 0:02:30.3]} 14. Qxd7
{[%clk 0:02:15.7]} 14... Qb6 {[%clk 0:02:26.1]} 15. Bc7 {[%clk 0:01:46]} 15...
Qc6 {[%clk 0:02:21.9]} 16. Qxc6 {[%clk 0:01:43.2]} 16... Nxc6 {[%clk 0:02:20]}
17. Rd7 {[%clk 0:01:35.3]} 17... Bc8 {[%clk 0:01:56.8]} 18. Rd2 {[%clk
0:01:32.8]} 18... Ra7 {[%clk 0:01:39.2]} 19. Bb6 {[%clk 0:01:25.2]} 19... Rd7
{[%clk 0:01:38.9]} 20. Rad1 {[%clk 0:01:24.3]} 20... Rxd2 {[%clk 0:01:35.6]} 21.
Rxd2 {[%clk 0:01:25.2]} 21... Bb4 {[%clk 0:01:33.4]} 22. a3 {[%clk 0:01:18.6]}
22... Ba5 {[%clk 0:01:33.5]} 23. Bc5 {[%clk 0:01:14.2]} 23... Rd8 {[%clk
0:01:31.9]} 24. Rxd8+ {[%clk 0:01:14.8]} 24... Bxd8 {[%clk 0:01:29.4]} 25. Bd6
{[%clk 0:01:03.1]} 25... Be7 {[%clk 0:01:25]} 26. Bxe7 {[%clk 0:00:49.3]} 26...
Ngxe7 {[%clk 0:01:24.9]} 27. Kf1 {[%clk 0:00:48.4]} 27... Kf8 {[%clk 0:01:23.8]}
28. Ke2 {[%clk 0:00:49]} 28... Ke8 {[%clk 0:01:24.4]} 29. Kd3 {[%clk 0:00:49.8]}
29... Kd7 {[%clk 0:01:24.2]} 30. g3 {[%clk 0:00:44.3]} 30... Kd6 {[%clk
0:01:22.1]} 31. Nd2 {[%clk 0:00:32.5]} 31... Ne5+ {[%clk 0:01:21.3]} 32. Ke2
{[%clk 0:00:33]} 32... Bb7 {[%clk 0:01:15.4]} 33. f4 {[%clk 0:00:33]} 33... Nd7
{[%clk 0:01:14.7]} 34. Ke3 {[%clk 0:00:31]} 34... Nc5 {[%clk 0:01:13.4]} 35. Bc2
{[%clk 0:00:29.6]} 35... e5 {[%clk 0:01:11.1]} 36. f5 {[%clk 0:00:21.1]} 36...
Nc6 {[%clk 0:01:07.1]} 37. Nf3 {[%clk 0:00:20.5]} 37... f6 {[%clk 0:01:05.3]}
38. b4 {[%clk 0:00:19.7]} 38... Nd7 {[%clk 0:01:05.1]} 39. Nd5 {[%clk
0:00:19.3]} 39... Ne7 {[%clk 0:00:58]} 40. Nxe7 {[%clk 0:00:18.4]} 40... Kxe7
{[%clk 0:00:58.2]} 41. Bb3 {[%clk 0:00:17.7]} 41... Kd6 {[%clk 0:00:57.5]} 42.
g4 {[%clk 0:00:18.2]} 42... Nb6 {[%clk 0:00:56.6]} 43. h4 {[%clk 0:00:17.8]}
43... Nc4+ {[%clk 0:00:54]} 44. Bxc4 {[%clk 0:00:17.7]} 44... bxc4 {[%clk
0:00:54.1]} 45. g5 {[%clk 0:00:12.7]} 45... Bc6 {[%clk 0:00:52.4]} 46. h5 {[%clk
0:00:10.1]} 46... h6 {[%clk 0:00:50.7]} 47. gxh6 {[%clk 0:00:10]} 47... gxh6
{[%clk 0:00:47.5]} 48. Nd2 {[%clk 0:00:10.6]} 48... c3 {[%clk 0:00:46.6]} 49.
Nc4+ {[%clk 0:00:07.8]} 49... Ke7 {[%clk 0:00:45.1]} 50. Kd3 {[%clk 0:00:08.7]}
50... Ba4 {[%clk 0:00:44.3]} 51. Kxc3 {[%clk 0:00:08.9]} 51... Bd1 {[%clk
0:00:44.3]} 52. Na5 {[%clk 0:00:06.4]} 52... Bxh5 {[%clk 0:00:43.9]} 53. Nb3
{[%clk 0:00:06.4]} 53... Kd6 {[%clk 0:00:41.8]} 54. Kd3 {[%clk 0:00:05.5]} 54...
Be8 {[%clk 0:00:39.8]} 55. Nd2 {[%clk 0:00:05.2]} 55... Bb5+ {[%clk 0:00:37.8]}
56. Ke3 {[%clk 0:00:05.9]} 56... h5 {[%clk 0:00:37.3]} 57. Nf3 {[%clk 0:00:06]}
57... Bf1 {[%clk 0:00:35.7]} 58. Nh4 {[%clk 0:00:06.2]} 58... Kc6 {[%clk
0:00:33.9]} 59. Kd2 {[%clk 0:00:06.5]} 59... Kb5 {[%clk 0:00:33.1]} 60. Kc3
{[%clk 0:00:06.2]} 60... Bh3 {[%clk 0:00:30.9]} 61. Kb2 {[%clk 0:00:05.4]} 61...
Kc4 {[%clk 0:00:30.1]} 62. Ng6 {[%clk 0:00:03.5]} 62... Kd4 {[%clk 0:00:28.6]}
63. Nf8 {[%clk 0:00:04.1]} 63... Kxe4 {[%clk 0:00:27.9]} 64. Nd7 {[%clk
0:00:04.8]} 64... Kxf5 {[%clk 0:00:27.9]} 65. Nc5 {[%clk 0:00:04.7]} 65... Bf1
{[%clk 0:00:28]} 66. a4 {[%clk 0:00:04.2]} 66... h4 {[%clk 0:00:27.9]} 67. Kc3
{[%clk 0:00:04.5]} 67... h3 {[%clk 0:00:26.8]} 68. Nd3 {[%clk 0:00:05.2]} 68...
Bxd3 {[%clk 0:00:22.2]} 69. Kxd3 {[%clk 0:00:06.1]} 69... h2 {[%clk 0:00:22.4]}
70. b5 {[%clk 0:00:06.7]} 70... axb5 {[%clk 0:00:21.7]} 71. axb5 {[%clk
0:00:07.6]} 71... h1=Q {[%clk 0:00:21.3]} 72. Kc4 {[%clk 0:00:08.2]} 72... Qb7
{[%clk 0:00:21.4]} 73. Kc5 {[%clk 0:00:08.1]} 73... Kf4 {[%clk 0:00:22.3]} 0-1

[Event "Early-Titled-Tuesday-Blitz-January-23-2024"]
[Site "Chess.com"]
[Date "2024.01.23"]
[Round "7"]
[White "lucliasco"]
[Black "M1711"]
[Result "1/2-1/2"]
[WhiteElo "2886"]
[BlackElo "2657"]
[TimeControl "180+1"]
[EndTime "9:19:38 PST"]
[Termination "Game drawn - insufficient material"]

1. d4 {[%clk 0:03:00.9]} 1... Nf6 {[%clk 0:02:59.8]} 2. Nf3 {[%clk 0:03:01.4]}
2... g6 {[%clk 0:02:59.8]} 3. g3 {[%clk 0:03:00]} 3... Bg7 {[%clk 0:02:59.9]} 4.
Bg2 {[%clk 0:03:00.9]} 4... b6 {[%clk 0:02:58.7]} 5. O-O {[%clk 0:03:01.8]} 5...
Bb7 {[%clk 0:02:58.9]} 6. b3 {[%clk 0:03:02.7]} 6... O-O {[%clk 0:02:58.8]} 7.
Bb2 {[%clk 0:03:03.6]} 7... c5 {[%clk 0:02:58.9]} 8. c4 {[%clk 0:02:54.1]} 8...
cxd4 {[%clk 0:02:54.8]} 9. Qxd4 {[%clk 0:02:55]} 9... d6 {[%clk 0:02:48.1]} 10.
Qh4 {[%clk 0:02:53.9]} 10... Nbd7 {[%clk 0:02:47.8]} 11. Nc3 {[%clk 0:02:53.1]}
11... Rc8 {[%clk 0:02:45.1]} 12. Rad1 {[%clk 0:02:51.9]} 12... a6 {[%clk
0:02:37.6]} 13. e4 {[%clk 0:02:47.5]} 13... Qc7 {[%clk 0:02:20]} 14. Ba1 {[%clk
0:02:44.8]} 14... Nc5 {[%clk 0:02:13.6]} 15. Nd5 {[%clk 0:02:42.7]} 15... Bxd5
{[%clk 0:02:13.8]} 16. exd5 {[%clk 0:02:36.5]} 16... b5 {[%clk 0:01:57.3]} 17.
Nd4 {[%clk 0:02:32.7]} 17... bxc4 {[%clk 0:01:56.6]} 18. bxc4 {[%clk 0:02:33.6]}
18... Ncd7 {[%clk 0:01:49.5]} 19. Nc6 {[%clk 0:02:33.4]} 19... Nb8 {[%clk
0:01:48.2]} 20. Rfe1 {[%clk 0:02:30.1]} 20... Nxc6 {[%clk 0:01:46.7]} 21. dxc6
{[%clk 0:02:31]} 21... e5 {[%clk 0:01:24.4]} 22. Bb2 {[%clk 0:02:22.3]} 22...
Rfd8 {[%clk 0:01:19.5]} 23. Ba3 {[%clk 0:02:11.1]} 23... Rb8 {[%clk 0:01:06.2]}
24. Bd5 {[%clk 0:02:10.6]} 24... Nxd5 {[%clk 0:00:59.2]} 25. cxd5 {[%clk
0:02:11.5]} 25... f5 {[%clk 0:00:50.7]} 26. Bc1 {[%clk 0:02:06.8]} 26... Rb5
{[%clk 0:00:48.9]} 27. Bg5 {[%clk 0:02:06.4]} 27... Re8 {[%clk 0:00:40.1]} 28.
Bh6 {[%clk 0:02:00]} 28... Qf7 {[%clk 0:00:37.6]} 29. Bxg7 {[%clk 0:01:58.4]}
29... Kxg7 {[%clk 0:00:37.5]} 30. Qc4 {[%clk 0:01:47.1]} 30... Rc8 {[%clk
0:00:28.8]} 31. Re3 {[%clk 0:01:44.3]} 31... Rc7 {[%clk 0:00:28.4]} 32. Ra3
{[%clk 0:01:43.5]} 32... Rc5 {[%clk 0:00:26.8]} 33. Qxa6 {[%clk 0:01:37.9]}
33... Rxd5 {[%clk 0:00:26.2]} 34. Rc1 {[%clk 0:01:16]} 34... f4 {[%clk
0:00:25.1]} 35. Qb6 {[%clk 0:01:13.2]} 35... e4 {[%clk 0:00:15.9]} 36. Qb2+
{[%clk 0:01:09.4]} 36... Kh6 {[%clk 0:00:14.4]} 37. gxf4 {[%clk 0:01:09.8]}
37... Qxf4 {[%clk 0:00:12.6]} 38. Rh3+ {[%clk 0:01:10.2]} 38... Rh5 {[%clk
0:00:11.5]} 39. Rg3 {[%clk 0:01:03.6]} 39... Rg5 {[%clk 0:00:08.6]} 40. Qc2
{[%clk 0:00:58.6]} 40... d5 {[%clk 0:00:06.1]} 41. Qd1 {[%clk 0:00:54]} 41... e3
{[%clk 0:00:06]} 42. Rc2 {[%clk 0:00:51.8]} 42... exf2+ {[%clk 0:00:05.9]} 43.
Kf1 {[%clk 0:00:45.6]} 43... Rxg3 {[%clk 0:00:05.9]} 44. hxg3 {[%clk 0:00:43.8]}
44... Qxg3 {[%clk 0:00:05.8]} 45. Qd2+ {[%clk 0:00:44.7]} 45... Qg5 {[%clk
0:00:04.3]} 46. Qxf2 {[%clk 0:00:41.3]} 46... Kg7 {[%clk 0:00:03.8]} 47. Ke1
{[%clk 0:00:33]} 47... Qe5+ {[%clk 0:00:03.8]} 48. Kd1 {[%clk 0:00:30.9]} 48...
d4 {[%clk 0:00:03.8]} 49. Rc4 {[%clk 0:00:29.1]} 49... Qd5 {[%clk 0:00:02.5]}
50. Qf4 {[%clk 0:00:26.8]} 50... Rxc6 {[%clk 0:00:02.1]} 51. Rxc6 {[%clk
0:00:21.7]} 51... Qxc6 {[%clk 0:00:02.3]} 52. Qxd4+ {[%clk 0:00:22.4]} 52... Kf7
{[%clk 0:00:02.3]} 53. a4 {[%clk 0:00:21]} 53... Ke7 {[%clk 0:00:01.8]} 54. Qg7+
{[%clk 0:00:20.3]} 54... Ke6 {[%clk 0:00:01.8]} 55. Qxh7 {[%clk 0:00:19.7]}
55... Qxa4+ {[%clk 0:00:02.4]} 56. Ke1 {[%clk 0:00:19.6]} 56... Qa1+ {[%clk
0:00:02.2]} 57. Kf2 {[%clk 0:00:19.9]} 57... Kf5 {[%clk 0:00:02.1]} 58. Qd7+
{[%clk 0:00:18.4]} 58... Kg5 {[%clk 0:00:02.1]} 59. Kg2 {[%clk 0:00:15.4]} 59...
Qb2+ {[%clk 0:00:02.1]} 60. Kg1 {[%clk 0:00:15.7]} 60... Qc1+ {[%clk 0:00:02]}
61. Kh2 {[%clk 0:00:14.4]} 61... Qc2+ {[%clk 0:00:02.4]} 62. Kg1 {[%clk
0:00:12.3]} 62... Qc1+ {[%clk 0:00:02.9]} 63. Kg2 {[%clk 0:00:11.6]} 63... Qc2+
{[%clk 0:00:03.8]} 64. Kg1 {[%clk 0:00:12.1]} 64... Qf5 {[%clk 0:00:04.3]} 65.
Qd8+ {[%clk 0:00:12.3]} 65... Kg4 {[%clk 0:00:04.5]} 66. Qd1+ {[%clk 0:00:11.7]}
66... Qf3 {[%clk 0:00:03.6]} 67. Qd7+ {[%clk 0:00:11.8]} 67... Kg3 {[%clk
0:00:03.6]} 68. Qd6+ {[%clk 0:00:11.7]} 68... Qf4 {[%clk 0:00:03.7]} 69. Qxg6+
{[%clk 0:00:11.9]} 69... Qg4 {[%clk 0:00:03.1]} 70. Qd3+ {[%clk 0:00:03.3]}
70... Kf4+ {[%clk 0:00:02.5]} 71. Kf2 {[%clk 0:00:03.4]} 71... Qh4+ {[%clk
0:00:03.1]} 72. Kg2 {[%clk 0:00:01.2]} 72... Qg4+ {[%clk 0:00:04]} 73. Kf2
{[%clk 0:00:01.5]} 73... Qh5 {[%clk 0:00:04.9]} 74. Kg2 {[%clk 0:00:02.1]} 74...
Qg5+ {[%clk 0:00:04.3]} 75. Kf2 {[%clk 0:00:02.7]} 75... Qc5+ {[%clk 0:00:04.8]}
76. Ke2 {[%clk 0:00:03]} 76... Qe5+ {[%clk 0:00:03.9]} 77. Kd2 {[%clk
0:00:03.9]} 77... Qb2+ {[%clk 0:00:04]} 78. Qc2 {[%clk 0:00:03.9]} 78... Qb4+
{[%clk 0:00:04.3]} 79. Qc3 {[%clk 0:00:04.2]} 79... Qd6+ {[%clk 0:00:05]} 80.
Kc2 {[%clk 0:00:05.1]} 80... Qe5 {[%clk 0:00:04.9]} 81. Kb3 {[%clk 0:00:05.9]}
81... Qe4 {[%clk 0:00:05.1]} 82. Qc4 {[%clk 0:00:06.3]} 82... Ke3 {[%clk
0:00:05.5]} 83. Qc3+ {[%clk 0:00:05.3]} 83... Kf2 {[%clk 0:00:05.3]} 84. Qc2+
{[%clk 0:00:05.5]} 84... Qe2 {[%clk 0:00:05.4]} 85. Qb2 {[%clk 0:00:05.2]} 85...
Ke3 {[%clk 0:00:05.5]} 86. Qxe2+ {[%clk 0:00:04]} 86... Kxe2 {[%clk 0:00:05.9]}
1/2-1/2

[Event "Early-Titled-Tuesday-Blitz-January-23-2024"]
[Site "Chess.com"]
[Date "2024.01.23"]
[Round "7"]
[White "aghasiyevkamal"]
[Black "cthulhuuu"]
[Result "1-0"]
[WhiteElo "2620"]
[BlackElo "2440"]
[TimeControl "180+1"]
[EndTime "9:19:45 PST"]
[Termination "aghasiyevkamal won on time"]

1. e4 {[%clk 0:03:00.9]} 1... d6 {[%clk 0:03:00]} 2. d4 {[%clk 0:03:00.1]} 2...
Nf6 {[%clk 0:03:00.7]} 3. Nc3 {[%clk 0:02:59.1]} 3... c6 {[%clk 0:03:01.2]} 4.
h3 {[%clk 0:02:54.9]} 4... e5 {[%clk 0:03:00.5]} 5. Nf3 {[%clk 0:02:52.3]} 5...
Qc7 {[%clk 0:03:00.4]} 6. a4 {[%clk 0:02:49.4]} 6... Be7 {[%clk 0:02:59.8]} 7.
Bc4 {[%clk 0:02:49.4]} 7... O-O {[%clk 0:03:00.6]} 8. O-O {[%clk 0:02:48.8]}
8... a5 {[%clk 0:03:00.9]} 9. dxe5 {[%clk 0:02:43.3]} 9... dxe5 {[%clk
0:03:00.6]} 10. Qe2 {[%clk 0:02:42.9]} 10... Nbd7 {[%clk 0:02:54.6]} 11. Nh4
{[%clk 0:02:23.6]} 11... Nc5 {[%clk 0:02:52.4]} 12. Bg5 {[%clk 0:02:19]} 12...
Ne6 {[%clk 0:02:44]} 13. Bxf6 {[%clk 0:02:13]} 13... Bxf6 {[%clk 0:02:44.1]} 14.
Bxe6 {[%clk 0:02:10.7]} 14... Bxe6 {[%clk 0:02:42.5]} 15. Nf5 {[%clk 0:02:10.9]}
15... g6 {[%clk 0:02:30.8]} 16. Nh6+ {[%clk 0:01:57.7]} 16... Kg7 {[%clk
0:02:29.3]} 17. Ng4 {[%clk 0:01:57.1]} 17... Be7 {[%clk 0:02:28.9]} 18. Qe3
{[%clk 0:01:54.9]} 18... h5 {[%clk 0:01:41.2]} 19. Qh6+ {[%clk 0:01:52.1]} 19...
Kg8 {[%clk 0:01:41.3]} 20. Ne3 {[%clk 0:01:51.7]} 20... Qd8 {[%clk 0:01:41.1]}
21. Rad1 {[%clk 0:01:40.7]} 21... Bg5 {[%clk 0:01:41.1]} 22. Rxd8 {[%clk
0:01:37.3]} 22... Bxh6 {[%clk 0:01:41.4]} 23. Rd3 {[%clk 0:01:21.1]} 23... Rfd8
{[%clk 0:01:35.3]} 24. Rfd1 {[%clk 0:01:21.2]} 24... Bg5 {[%clk 0:01:35.6]} 25.
b3 {[%clk 0:01:13.4]} 25... Kf8 {[%clk 0:01:32.1]} 26. Kf1 {[%clk 0:01:10.1]}
26... Ke7 {[%clk 0:01:31.1]} 27. Ke2 {[%clk 0:01:09.3]} 27... Rxd3 {[%clk
0:01:07]} 28. Rxd3 {[%clk 0:01:09.1]} 28... Rd8 {[%clk 0:01:01.3]} 29. Rxd8
{[%clk 0:01:08.8]} 29... Kxd8 {[%clk 0:01:02.2]} 30. Kd3 {[%clk 0:01:09.3]}
30... Kc7 {[%clk 0:01:01.9]} 31. Nc4 {[%clk 0:01:07.8]} 31... Bxc4+ {[%clk
0:00:40.4]} 32. Kxc4 {[%clk 0:01:07.9]} 32... f5 {[%clk 0:00:32.2]} 33. exf5
{[%clk 0:00:49]} 33... gxf5 {[%clk 0:00:32.1]} 34. f3 {[%clk 0:00:48.8]} 34...
h4 {[%clk 0:00:28.2]} 35. Ne2 {[%clk 0:00:41.8]} 35... Be3 {[%clk 0:00:26.6]}
36. Kd3 {[%clk 0:00:39.8]} 36... Bc5 {[%clk 0:00:26]} 37. g4 {[%clk 0:00:26.5]}
37... e4+ {[%clk 0:00:17.9]} 38. fxe4 {[%clk 0:00:25.6]} 38... fxg4 {[%clk
0:00:18.3]} 39. hxg4 {[%clk 0:00:25.6]} 39... h3 {[%clk 0:00:18.4]} 40. Ng3
{[%clk 0:00:25.6]} 40... Bd6 {[%clk 0:00:18]} 41. Nh1 {[%clk 0:00:22.8]} 41...
Kd7 {[%clk 0:00:16.1]} 42. Ke2 {[%clk 0:00:20.7]} 42... Ke6 {[%clk 0:00:16.1]}
43. Kf3 {[%clk 0:00:20.8]} 43... Kf6 {[%clk 0:00:14.5]} 44. Nf2 {[%clk
0:00:17.5]} 44... h2 {[%clk 0:00:14.6]} 45. Kg2 {[%clk 0:00:16.8]} 45... Kg5
{[%clk 0:00:14.9]} 46. Nd3 {[%clk 0:00:16.6]} 46... Kxg4 {[%clk 0:00:14.6]} 47.
e5 {[%clk 0:00:17.1]} 47... Bc7 {[%clk 0:00:13.3]} 48. Kxh2 {[%clk 0:00:17.5]}
48... Kf5 {[%clk 0:00:13.5]} 49. Kg2 {[%clk 0:00:17.4]} 49... Bxe5 {[%clk
0:00:12.9]} 50. Kf3 {[%clk 0:00:17.9]} 50... Bd4 {[%clk 0:00:12.8]} 51. Ke2
{[%clk 0:00:15.9]} 51... Ke4 {[%clk 0:00:12.5]} 52. Kd2 {[%clk 0:00:14.9]} 52...
b5 {[%clk 0:00:11]} 53. Ne1 {[%clk 0:00:09]} 53... Be3+ {[%clk 0:00:06.8]} 54.
Kc3 {[%clk 0:00:08.1]} 54... Bd4+ {[%clk 0:00:06.8]} 55. Kd2 {[%clk 0:00:07.9]}
55... Bc5 {[%clk 0:00:03.6]} 56. Nd3 {[%clk 0:00:07.4]} 56... Bd4 {[%clk
0:00:03.8]} 57. c3 {[%clk 0:00:07.4]} 57... Be3+ {[%clk 0:00:04.1]} 58. Kc2
{[%clk 0:00:07.5]} 58... Kd5 {[%clk 0:00:03.8]} 59. Nb2 {[%clk 0:00:06.9]} 59...
Bb6 {[%clk 0:00:04.1]} 60. Nd1 {[%clk 0:00:06.5]} 60... Ba7 {[%clk 0:00:03.5]}
61. Nb2 {[%clk 0:00:05.6]} 61... Bf2 {[%clk 0:00:03.1]} 62. Kd3 {[%clk
0:00:05.7]} 62... Bg1 {[%clk 0:00:03.3]} 63. Nd1 {[%clk 0:00:05.5]} 63... bxa4
{[%clk 0:00:03.1]} 64. bxa4 {[%clk 0:00:05.6]} 64... Kc5 {[%clk 0:00:04]} 65.
Nb2 {[%clk 0:00:05.8]} 65... Bh2 {[%clk 0:00:03.6]} 66. Nc4 {[%clk 0:00:05.9]}
66... Bc7 {[%clk 0:00:03.8]} 67. Nd2 {[%clk 0:00:05.7]} 67... Kd5 {[%clk
0:00:03.6]} 68. Nb3 {[%clk 0:00:05.4]} 68... c5 {[%clk 0:00:02.5]} 69. c4+
{[%clk 0:00:05.2]} 69... Kc6 {[%clk 0:00:02.9]} 70. Ke4 {[%clk 0:00:05.5]} 70...
Bb6 {[%clk 0:00:03.2]} 71. Ke5 {[%clk 0:00:04.6]} 71... Bc7+ {[%clk 0:00:03.7]}
72. Ke6 {[%clk 0:00:04.6]} 72... Bb6 {[%clk 0:00:04.3]} 73. Nc1 {[%clk
0:00:03.9]} 73... Bc7 {[%clk 0:00:04.8]} 74. Nd3 {[%clk 0:00:04.1]} 74... Bb8
{[%clk 0:00:04.9]} 75. Ne5+ {[%clk 0:00:04.3]} 75... Kc7 {[%clk 0:00:03.7]} 76.
Kd5 {[%clk 0:00:04]} 76... Kb6 {[%clk 0:00:04.2]} 77. Nd7+ {[%clk 0:00:02.8]}
77... Kb7 {[%clk 0:00:04.6]} 78. Nxb8 {[%clk 0:00:03.1]} 1-0